bitfinex/quotes_BTCUSD_20220731
["timestamp","ask_amount","ask_price","bid_price","bid_amount"]
[1659288549436,0.64944614,23722.0,23721.0,0.2055539]
[1659288549963,0.63364399,23722.0,23721.0,0.2055539]
[1659288550188,0.61941114,23722.0,23721.0,0.2055539]
[1659288550991,0.63584389,23722.0,23721.0,0.2055539]
[1659288551217,0.63584389,23722.0,23721.0,0.1735539]
[1659288551455,0.62161104,23722.0,23721.0,0.2055539]
[1659288552818,0.62161104,23722.0,23721.0,0.1735539]
[1659288553479,0.62161104,23722.0,23721.0,0.2055539]
[1659288554115,0.72664104,23722.0,23721.0,0.2055539]
[1659288555130,0.72664104,23722.0,23721.0,0.1735539]
[1659288555330,0.62161104,23722.0,23721.0,0.22499421]
[1659288555499,0.62161104,23722.0,23721.0,0.2045539]
[1659288556669,0.62161104,23722.0,23721.0,0.1735539]
[1659288557336,0.62161104,23722.0,23721.0,0.2045539]
[1659288558702,0.62161104,23722.0,23721.0,0.1735539]
[1659288559363,0.62161104,23722.0,23721.0,0.2045539]
[1659288560778,0.62161104,23722.0,23721.0,0.1735539]
[1659288561161,0.62161104,23722.0,23721.0,0.19811298]
[1659288561397,0.62161104,23722.0,23721.0,0.2045539]
[1659288562777,0.62161104,23722.0,23721.0,0.1735539]
[1659288564899,0.63584389,23722.0,23721.0,0.1735539]
[1659288566669,0.63584389,23722.0,23721.0,0.2045539]
[1659288567366,0.63584389,23722.0,23721.0,0.2355539]
[1659288568476,0.62161104,23722.0,23721.0,0.1735539]
[1659288568704,0.62161104,23722.0,23721.0,0.19811298]
[1659288568908,0.62161104,23722.0,23721.0,0.2045539]
[1659288570218,0.62161104,23722.0,23721.0,0.1735539]
[1659288570425,0.59214889,23722.0,23721.0,0.1735539]
[1659288570858,0.66914889,23722.0,23721.0,0.2065539]
[1659288571309,0.77626381,23722.0,23721.0,0.2065539]
[1659288572266,0.71349666,23722.0,23721.0,0.1735539]
[1659288573019,0.71349666,23722.0,23721.0,0.2235539]
[1659288574283,0.60846666,23722.0,23721.0,0.1735539]
[1659288574946,0.60846666,23722.0,23721.0,0.2235539]
[1659288576251,0.60846666,23722.0,23721.0,0.1735539]
[1659288576823,0.60846666,23722.0,23721.0,0.2235539]
[1659288577436,0.60540791,23722.0,23721.0,0.2235539]
[1659288577639,0.60438832,23722.0,23721.0,0.2235539]
[1659288578063,0.60438832,23722.0,23721.0,0.1735539]
[1659288578381,0.60644278,23722.0,23721.0,0.1735539]
[1659288579041,0.70177278,23722.0,23721.0,0.1735539]
[1659288579270,1.00570778,23722.0,23721.0,0.1735539]
[1659288579542,1.00570778,23722.0,23721.0,0.04492095]
[1659288579770,1.00570778,23722.0,23721.0,0.09492095]
[1659288579989,1.00570778,23722.0,23721.0,0.05]
[1659288580946,1.08070778,23722.0,23721.0,0.08]
[1659288581166,1.08070778,23722.0,23721.0,0.03]
[1659288582141,1.00570778,23722.0,23720.0,0.3]
[1659288582371,1.46119233,23721.0,23719.0,0.18775955]
[1659288582607,1.71119233,23720.0,23719.0,0.18775955]
[1659288582839,1.71119233,23720.0,23719.0,0.08775955]
[1659288583310,1.71119233,23720.0,23714.0,0.12871596]
[1659288583311,0.9,23719.0,23714.0,0.12871596]
[1659288583548,0.70725733,23718.0,23714.0,0.1286]
[1659288583774,0.40725733,23717.0,23714.0,0.1286]
[1659288584941,0.40725733,23717.0,23714.0,0.2076]
[1659288585609,0.3,23716.0,23714.0,0.2076]
[1659288585860,0.70725733,23715.0,23714.0,0.2076]
[1659288586110,0.70725733,23715.0,23714.0,0.1286]
[1659288586336,0.70725733,23715.0,23714.0,0.1284668]
[1659288586756,0.70725733,23715.0,23714.0,0.25147038]
[1659288587244,0.72149018,23715.0,23714.0,0.25147038]
[1659288587465,0.42149018,23715.0,23714.0,0.25147038]
[1659288587907,0.42149018,23715.0,23714.0,0.2074668]
[1659288588131,0.42149018,23715.0,23714.0,0.1284668]
[1659288588594,0.40725733,23715.0,23714.0,0.14890711]
[1659288588831,0.40725733,23715.0,23714.0,0.57790711]
[1659288589048,0.40725733,23715.0,23714.0,0.27790711]
[1659288589282,0.40725733,23716.0,23714.0,0.59055059]
[1659288589516,0.40725733,23717.0,23715.0,0.1821]
[1659288589776,0.40725733,23717.0,23716.0,0.0525]
[1659288590467,0.40725733,23717.0,23715.0,0.49224348]
[1659288590714,0.40725733,23717.0,23715.0,0.19224348]
[1659288590932,0.40725733,23717.0,23716.0,0.08214123]
[1659288592347,0.40725733,23717.0,23716.0,0.00314123]
[1659288592780,0.40725733,23717.0,23715.0,0.19224348]
[1659288592992,0.40725733,23717.0,23716.0,0.0525]
[1659288593224,0.40725733,23717.0,23716.0,0.1325]
[1659288593465,0.40725733,23717.0,23716.0,0.4325]
[1659288593921,0.40725733,23717.0,23716.0,0.43439982]
[1659288594605,0.40725733,23717.0,23716.0,0.35439982]
[1659288594891,0.40725733,23717.0,23716.0,0.05439982]
[1659288595110,0.41024191,23717.0,23716.0,0.05278482]
[1659288595329,0.41024191,23717.0,23715.0,0.1796]
[1659288595557,0.41024191,23717.0,23716.0,0.0525]
[1659288596381,0.41024191,23717.0,23716.0,0.05278482]
[1659288597289,0.37911191,23717.0,23716.0,0.13278482]
[1659288597526,0.37911191,23717.0,23716.0,0.43278482]
[1659288598183,0.38205701,23717.0,23716.0,0.43278482]
[1659288598404,0.38205701,23717.0,23716.0,0.51278482]
[1659288598664,0.38205701,23717.0,23716.0,0.35278482]
[1659288599284,0.38205701,23717.0,23716.0,0.05278482]
[1659288599498,0.38205701,23717.0,23716.0,0.08028482]
[1659288600224,0.38205701,23717.0,23716.0,0.00028482]
[1659288601351,0.38205701,23717.0,23715.0,0.1796]
[1659288601573,0.38205701,23717.0,23716.0,0.08]
[1659288602030,0.35047272,23717.0,23716.0,0.08]
[1659288602747,0.35047272,23717.0,23715.0,0.1278]
[1659288603433,0.35047272,23717.0,23715.0,0.2068]
[1659288604791,0.35047272,23717.0,23715.0,0.1278]
[1659288605497,0.3,23716.0,23715.0,0.2068]
[1659288605756,0.70725733,23716.0,23715.0,0.2068]
[1659288606207,0.70725733,23716.0,23715.0,0.2067334]
[1659288606646,0.70725733,23716.0,23715.0,0.1277334]
[1659288607311,0.70725733,23716.0,23715.0,0.2067334]
[1659288608708,0.70725733,23716.0,23715.0,0.1277334]
[1659288610627,0.70725733,23716.0,23715.0,0.2067334]
[1659288611238,0.70725733,23716.0,23715.0,0.2857334]
[1659288611547,0.40725733,23716.0,23715.0,0.6357334]
[1659288611751,0.40725733,23716.0,23715.0,0.65617371]
[1659288611968,0.01015218,23717.0,23715.0,0.49879231]
[1659288612177,0.623028,23720.0,23719.0,0.0525]
[1659288612385,0.62322587,23723.0,23719.0,0.1806]
[1659288612589,0.40725733,23722.0,23719.0,0.1025]
[1659288612805,0.40725733,23722.0,23721.0,0.1274]
[1659288613874,0.40725733,23722.0,23721.0,0.12890167]
[1659288614074,0.40725733,23722.0,23721.0,0.1274]
[1659288615263,1.55883541,23722.0,23721.0,0.1274]
[1659288615462,1.86277041,23722.0,23721.0,0.1484]
[1659288615721,1.55883541,23722.0,23721.0,0.1484]
[1659288615958,1.86277041,23722.0,23721.0,0.1484]
[1659288616191,1.86277041,23722.0,23721.0,0.021]
[1659288616418,1.86277041,23722.0,23718.0,0.2283]
[1659288616419,0.9,23721.0,23718.0,0.2283]
[1659288616641,0.6,23719.0,23718.0,0.1]
[1659288616870,1.31119233,23719.0,23718.0,0.1]
[1659288617093,1.32542518,23719.0,23718.0,0.1]
[1659288617330,1.02149018,23719.0,23716.0,0.1283]
[1659288617568,0.91816785,23719.0,23718.0,0.018]
[1659288617866,1.32542518,23719.0,23718.0,0.018]
[1659288618231,1.02149018,23719.0,23718.0,0.018]
[1659288618673,0.97149018,23719.0,23717.0,0.02044031]
[1659288618891,0.40725733,23718.0,23716.0,0.1283]
[1659288619141,0.40725733,23718.0,23716.0,0.1783]
[1659288619365,0.40725733,23718.0,23717.0,0.014]
[1659288620735,0.40725733,23718.0,23716.0,0.19874031]
[1659288621422,0.40725733,23718.0,23716.0,0.21674031]
[1659288622139,0.40725733,23718.0,23717.0,0.00013005]
[1659288622382,0.40996837,23718.0,23717.0,0.00013005]
[1659288623541,0.40996837,23718.0,23717.0,0.01813005]
[1659288624601,0.40996837,23718.0,23717.0,0.00013005]
[1659288624835,0.40996837,23718.0,23716.0,0.19874031]
[1659288625028,0.00271104,23718.0,23717.0,0.00013005]
[1659288625367,0.40996837,23718.0,23717.0,0.01813005]
[1659288625655,0.40996837,23718.0,23717.0,0.018]
[1659288626798,0.40996837,23718.0,23716.0,0.19874031]
[1659288627027,0.40725733,23717.0,23716.0,0.19874031]
[1659288628133,0.40725733,23717.0,23716.0,0.24274389]
[1659288629133,0.40725733,23717.0,23716.0,0.24287394]
[1659288629360,0.40725733,23717.0,23716.0,0.26487394]
[1659288630699,0.40725733,23717.0,23716.0,0.24430358]
[1659288631065,0.40725733,23717.0,23716.0,0.19430358]
[1659288631231,0.40725733,23717.0,23716.0,0.49430358]
[1659288631437,0.40725733,23717.0,23716.0,0.19430358]
[1659288632545,0.40725733,23717.0,23716.0,0.17230358]
[1659288633253,0.40725733,23717.0,23716.0,0.24430358]
[1659288633478,0.40725733,23717.0,23716.0,0.19430358]
[1659288633695,0.40725733,23717.0,23716.0,0.49430358]
[1659288634148,0.40725733,23717.0,23716.0,0.19430358]
[1659288634376,0.40725733,23717.0,23716.0,0.49430358]
[1659288634636,0.40725733,23717.0,23716.0,0.47230358]
[1659288634852,0.40725733,23717.0,23716.0,0.52230358]
[1659288635295,0.40725733,23717.0,23716.0,0.54430358]
[1659288635511,0.40725733,23717.0,23716.0,0.24430358]
[1659288636683,0.40725733,23717.0,23716.0,0.22230358]
[1659288637363,0.40725733,23717.0,23716.0,0.24430358]
[1659288637820,0.42149018,23717.0,23716.0,0.24430358]
[1659288638009,0.40725733,23717.0,23716.0,0.24430358]
[1659288638675,0.40725733,23717.0,23716.0,0.22230358]
[1659288639139,0.40714077,23717.0,23716.0,0.22230358]
[1659288639785,0.40714077,23717.0,23716.0,0.24430358]
[1659288641164,0.40714077,23717.0,23716.0,0.22230358]
[1659288641591,0.40714077,23717.0,23716.0,0.24287394]
[1659288641796,0.40714077,23717.0,23716.0,0.22230358]
[1659288643845,0.40714077,23717.0,23716.0,0.24430358]
[1659288644971,0.40714077,23717.0,23716.0,0.22230358]
[1659288645644,0.40714077,23717.0,23716.0,0.24287394]
[1659288645907,0.40714077,23717.0,23716.0,0.17230358]
[1659288646187,0.40714077,23717.0,23716.0,0.22230358]
[1659288646625,0.40714077,23717.0,23716.0,0.24287394]
[1659288647056,0.40714077,23717.0,23716.0,0.22230358]
[1659288647826,0.40714077,23717.0,23716.0,0.24287394]
[1659288648038,0.40714077,23717.0,23716.0,0.22230358]
[1659288651149,0.40714077,23717.0,23716.0,0.22243363]
[1659288651361,0.40714077,23717.0,23716.0,0.22230358]
[1659288651785,0.40714077,23717.0,23716.0,0.24430358]
[1659288652061,0.42137362,23717.0,23716.0,0.24430358]
[1659288652260,0.42137362,23717.0,23716.0,0.26630358]
[1659288652531,0.40714077,23717.0,23716.0,0.26630358]
[1659288652727,0.40714077,23717.0,23716.0,0.28687394]
[1659288653082,0.40714077,23717.0,23716.0,0.22230358]
[1659288653934,0.40714077,23717.0,23716.0,0.24430358]
[1659288655307,0.40714077,23717.0,23716.0,0.22230358]
[1659288655953,0.40714077,23717.0,23716.0,0.24430358]
[1659288657162,0.40714077,23717.0,23716.0,0.22230358]
[1659288658495,0.40714077,23717.0,23716.0,0.23643627]
[1659288659322,0.40714077,23717.0,23716.0,0.22230358]
[1659288660152,0.42137362,23717.0,23716.0,0.22230358]
[1659288660368,0.40714077,23717.0,23716.0,0.22230358]
[1659288661337,0.40702616,23717.0,23716.0,0.23097185]
[1659288662005,0.40702616,23717.0,23716.0,0.22230358]
[1659288662587,0.40702616,23717.0,23716.0,0.23643627]
[1659288662724,0.40702616,23717.0,23716.0,0.25843627]
[1659288663159,0.40702616,23717.0,23716.0,0.28043627]
[1659288663373,0.40702616,23717.0,23716.0,0.58043627]
[1659288663617,0.40702616,23717.0,23716.0,0.56630358]
[1659288663830,0.40702616,23717.0,23716.0,0.58674389]
[1659288664078,0.40702616,23717.0,23716.0,0.52230358]
[1659288664290,0.40702616,23717.0,23716.0,0.52538599]
[1659288664510,0.42125901,23717.0,23716.0,0.22230358]
[1659288664732,0.40702616,23717.0,23716.0,0.24430358]
[1659288665422,0.40702616,23717.0,23716.0,0.24738599]
[1659288666064,0.40702616,23717.0,23716.0,0.22538599]
[1659288666921,0.40702616,23717.0,23716.0,0.24430358]
[1659288668053,0.40702616,23717.0,23716.0,0.22230358]
[1659288668718,0.40702616,23717.0,23716.0,0.24430358]
[1659288670106,0.40702616,23717.0,23716.0,0.22230358]
[1659288670773,0.40702616,23717.0,23716.0,0.24430358]
[1659288671397,0.40702616,23717.0,23716.0,0.19430358]
[1659288672120,0.40702616,23717.0,23716.0,0.17230358]
[1659288672348,0.40702616,23717.0,23716.0,0.16730358]
[1659288672883,0.40702616,23717.0,23716.0,0.18930358]
[1659288674197,0.40702616,23717.0,23716.0,0.16730358]
[1659288674855,0.40702616,23717.0,23716.0,0.18930358]
[1659288675084,0.9,23716.0,23713.0,0.14349392]
[1659288675294,0.71119233,23715.0,23713.0,0.14349392]
[1659288675531,0.76119233,23714.0,23713.0,0.14349392]
[1659288675978,0.45725733,23714.0,23713.0,0.14349392]
[1659288676867,0.76119233,23714.0,23713.0,0.21649392]
[1659288677101,0.45725733,23714.0,23713.0,0.21649392]
[1659288677758,0.47149018,23714.0,23713.0,0.21649392]
[1659288677977,0.47149018,23714.0,23713.0,0.51649392]
[1659288678191,0.47149018,23714.0,23713.0,0.51642755]
[1659288678192,0.40725733,23714.0,23713.0,0.51642755]
[1659288678624,0.42149018,23714.0,23713.0,0.44342755]
[1659288678840,0.42149018,23714.0,23713.0,0.52242755]
[1659288680121,0.42149018,23714.0,23713.0,0.49342755]
[1659288680335,0.42149018,23714.0,23713.0,0.44342755]
[1659288680544,0.42149018,23714.0,23713.0,0.14342755]
[1659288680766,0.42149018,23714.0,23713.0,0.14842755]
[1659288681608,0.42149018,23714.0,23713.0,0.19842755]
[1659288681877,0.42149018,23714.0,23713.0,0.49842755]
[1659288682093,0.42149018,23714.0,23713.0,0.49342755]
[1659288682488,0.42149018,23714.0,23713.0,0.44342755]
[1659288682946,0.42149018,23714.0,23713.0,0.14342755]
[1659288683854,0.42149018,23714.0,23713.0,0.14842755]
[1659288685004,0.72542518,23714.0,23713.0,0.14842755]
[1659288685210,0.72542518,23714.0,23713.0,0.15342755]
[1659288685433,0.42149018,23714.0,23713.0,0.15342755]
[1659288685658,0.42149018,23714.0,23713.0,0.14342755]
[1659288688593,0.72542518,23714.0,23713.0,0.04342755]
[1659288689055,0.72542518,23714.0,23712.0,0.1275]
[1659288689285,0.65,23709.0,23708.0,0.229]
[1659288689514,1.35725733,23709.0,23708.0,0.229]
[1659288689770,1.35725733,23709.0,23708.0,0.1319]
[1659288690000,1.05725733,23709.0,23708.0,0.1319]
[1659288690231,1.05725733,23709.0,23708.0,0.129]
[1659288690951,0.45725733,23709.0,23708.0,0.208]
[1659288691836,0.75725733,23709.0,23708.0,0.208]
[1659288692072,0.45725733,23709.0,23708.0,0.208]
[1659288692336,0.45725733,23709.0,23708.0,0.129]
[1659288692990,0.47149018,23709.0,23708.0,0.15188327]
[1659288693432,0.77542518,23709.0,23708.0,0.15188327]
[1659288693677,0.47149018,23709.0,23708.0,0.15188327]
[1659288695759,0.42090867,23709.0,23708.0,0.15188327]
[1659288696212,0.72484367,23709.0,23708.0,0.12881667]
[1659288696917,0.72484367,23709.0,23708.0,0.15381667]
[1659288697135,0.42090867,23709.0,23708.0,0.15381667]
[1659288698281,0.42090867,23709.0,23708.0,0.12881667]
[1659288698498,0.42090867,23709.0,23707.0,0.04736537]
[1659288698740,0.40725733,23708.0,23707.0,0.04736537]
[1659288701332,0.40725733,23708.0,23707.0,0.08236537]
[1659288701490,0.42149018,23708.0,23707.0,0.08236537]
[1659288702680,0.42149018,23708.0,23707.0,0.04736537]
[1659288702909,0.42149018,23708.0,23707.0,0.08236537]
[1659288703599,0.40725733,23708.0,23707.0,0.08236537]
[1659288704114,0.40725733,23708.0,23707.0,0.16901537]
[1659288704355,0.40725733,23708.0,23707.0,0.48401537]
[1659288704820,0.40725733,23708.0,23707.0,0.49665885]
[1659288704821,0.37722673,23708.0,23707.0,0.49665885]
[1659288705052,0.59,23715.0,23707.0,1.92417544]
[1659288705285,0.59,23715.0,23709.0,0.1]
[1659288705286,0.40725733,23714.0,23709.0,0.1]
[1659288705518,0.40725733,23714.0,23713.0,0.1293]
[1659288705769,0.72542518,23714.0,23713.0,0.1293]
[1659288710862,0.71119233,23714.0,23713.0,0.17355302]
[1659288711602,0.40725733,23714.0,23713.0,0.17355302]
[1659288713012,0.40725733,23714.0,23713.0,0.19547994]
[1659288713239,0.40725733,23714.0,23713.0,0.17355302]
[1659288714819,0.42149018,23714.0,23713.0,0.17355302]
[1659288715038,0.40725733,23714.0,23713.0,0.17355302]
[1659288715283,0.71119233,23714.0,23713.0,0.17355302]
[1659288715510,0.40725733,23714.0,23713.0,0.17355302]
[1659288715749,0.42149018,23714.0,23713.0,0.17355302]
[1659288715984,0.40725733,23714.0,23713.0,0.17355302]
[1659288716858,0.42149018,23714.0,23713.0,0.17355302]
[1659288716999,0.40725733,23714.0,23713.0,0.17355302]
[1659288717250,0.37611333,23714.0,23713.0,0.17355302]
[1659288717457,0.37611333,23714.0,23713.0,0.04425302]
[1659288717659,0.37611333,23714.0,23712.0,0.20386236]
[1659288718933,0.37611333,23714.0,23712.0,0.20686236]
[1659288720248,0.37611333,23714.0,23712.0,0.20386236]
[1659288720901,0.37611333,23714.0,23712.0,0.20686236]
[1659288722101,0.39034618,23714.0,23712.0,0.1308]
[1659288722320,0.37611333,23714.0,23712.0,0.15690858]
[1659288723077,0.39034618,23714.0,23712.0,0.1308]
[1659288723767,0.37611333,23714.0,23712.0,0.15990858]
[1659288724206,0.37611333,23714.0,23712.0,0.15690858]
[1659288724897,0.37611333,23714.0,23712.0,0.17090858]
[1659288725344,0.37611333,23714.0,23712.0,0.22090858]
[1659288726272,0.37611333,23714.0,23712.0,0.17090858]
[1659288726489,0.37611333,23714.0,23713.0,0.05493668]
[1659288726974,0.39034618,23714.0,23713.0,0.05493668]
[1659288727209,0.37611333,23714.0,23712.0,0.1418]
[1659288728142,0.37611333,23714.0,23712.0,0.1661276]
[1659288728366,0.37611333,23714.0,23712.0,0.1521276]
[1659288731570,0.37611333,23714.0,23713.0,0.05493668]
[1659288731803,0.37611333,23714.0,23712.0,0.2021276]
[1659288732033,0.37611333,23714.0,23713.0,0.05493668]
[1659288732986,0.37611333,23714.0,23713.0,0.008]
[1659288733891,0.39034618,23714.0,23713.0,0.008]
[1659288734134,0.37611333,23714.0,23713.0,0.03317639]
[1659288734362,0.37611333,23714.0,23713.0,0.02517639]
[1659288734610,0.37611333,23714.0,23712.0,0.1778]
[1659288734832,0.39034618,23714.0,23712.0,0.1778]
[1659288735049,0.39034618,23714.0,23713.0,0.008]
[1659288735265,0.37611333,23714.0,23713.0,0.008]
[1659288736192,0.37611333,23714.0,23712.0,0.20586298]
[1659288736429,0.37611333,23714.0,23712.0,0.50551798]
[1659288736669,0.40725733,23717.0,23712.0,0.20551798]
[1659288736884,0.63191711,23717.0,23714.0,0.1293]
[1659288737111,0.42149018,23716.0,23714.0,0.1293]
[1659288737338,0.40725733,23715.0,23714.0,0.1293]
[1659288738885,0.71119233,23715.0,23714.0,0.1293]
[1659288739104,0.40725733,23715.0,23714.0,0.1293]
[1659288742152,0.40725733,23715.0,23714.0,0.14199776]
[1659288742624,0.40725733,23715.0,23714.0,0.17296492]
[1659288743812,0.40725733,23715.0,23714.0,0.22296492]
[1659288744225,0.40725733,23715.0,23714.0,0.17296492]
[1659288746243,0.40725733,23715.0,23714.0,0.22296492]
[1659288746928,0.52940928,23720.0,23719.0,0.05493668]
[1659288747166,0.5681647,23724.0,23719.0,0.05493668]
[1659288747167,6.47e-05,23724.0,23719.0,0.05493668]
[1659288747405,0.40725733,23723.0,23722.0,0.1294]
[1659288747870,0.40725733,23723.0,23722.0,0.14984031]
[1659288748090,0.40725733,23723.0,23722.0,0.1294]
[1659288749026,0.40725733,23723.0,23722.0,0.14984031]
[1659288749256,0.40725733,23723.0,23722.0,0.1294]
[1659288749974,0.40725733,23723.0,23722.0,0.14984031]
[1659288750200,0.40725733,23723.0,23722.0,0.1294]
[1659288751979,0.40725733,23723.0,23722.0,0.16139698]
[1659288752872,0.40725733,23723.0,23722.0,0.17386221]
[1659288756646,0.40725733,23723.0,23722.0,0.22386221]
[1659288757097,0.40725733,23726.0,23722.0,0.22386221]
[1659288757313,0.40725733,23726.0,23722.0,0.32386221]
[1659288757577,0.40725733,23726.0,23725.0,0.1294]
[1659288757815,0.71119233,23726.0,23725.0,0.1294]
[1659288758504,0.72542518,23726.0,23725.0,0.1294]
[1659288758739,0.71119233,23726.0,23725.0,0.1294]
[1659288759895,0.40725733,23726.0,23725.0,0.1294]
[1659288761069,0.71119233,23726.0,23725.0,0.1294]
[1659288761300,0.71119233,23726.0,23725.0,0.13084801]
[1659288761771,0.71119233,23726.0,23725.0,0.00144801]
[1659288764259,0.40725733,23726.0,23725.0,0.00144801]
[1659288764974,0.71119233,23726.0,23725.0,0.00144801]
[1659288765471,0.40725733,23726.0,23725.0,0.00144801]
[1659288765715,0.71119233,23726.0,23725.0,0.00144801]
[1659288765930,0.40725733,23726.0,23725.0,0.00144801]
[1659288766143,0.71119233,23726.0,23725.0,0.00096555]
[1659288766352,0.72535858,23726.0,23725.0,0.00096555]
[1659288766786,0.71112573,23726.0,23725.0,0.00096555]
[1659288767700,0.72535858,23726.0,23725.0,0.00096555]
[1659288768385,0.71112573,23726.0,23725.0,0.00096555]
[1659288768611,0.303935,23726.0,23725.0,0.07972555]
[1659288768836,0.6007,23727.0,23725.0,0.20902555]
[1659288769143,1.00795733,23727.0,23725.0,0.20902555]
[1659288769454,1.00795733,23727.0,23726.0,0.0206725]
[1659288770125,0.654,23728.0,23726.0,0.0206725]
[1659288770348,0.654,23728.0,23727.0,0.1293]
[1659288771716,0.654,23728.0,23727.0,0.1793]
[1659288771936,0.654,23728.0,23727.0,0.1293]
[1659288772378,0.654,23728.0,23727.0,0.1793]
[1659288773055,0.654,23728.0,23727.0,0.1903]
[1659288773773,0.61197415,23728.0,23727.0,0.1903]
[1659288774235,0.61197415,23728.0,23727.0,0.1793]
[1659288774696,0.61197415,23728.0,23727.0,0.17978226]
[1659288774927,0.61197415,23728.0,23727.0,0.19878226]
[1659288775628,0.61197415,23728.0,23727.0,0.19973767]
[1659288776310,0.61197415,23728.0,23727.0,0.18073767]
[1659288776528,0.59927415,23728.0,23727.0,0.18073767]
[1659288776994,0.59927415,23728.0,23727.0,0.19973767]
[1659288777431,0.65533193,23730.0,23727.0,0.19973767]
[1659288777647,0.40725733,23729.0,23728.0,0.05493668]
[1659288777872,0.40164303,23729.0,23728.0,0.1294]
[1659288778119,0.40164303,23729.0,23728.0,0.18433668]
[1659288778347,0.40164303,23729.0,23728.0,0.48433668]
[1659288779049,0.40164303,23729.0,23728.0,0.49733668]
[1659288779984,0.40164303,23729.0,23728.0,0.54733668]
[1659288780193,0.40164303,23729.0,23728.0,0.53433668]
[1659288780924,0.40164303,23729.0,23728.0,0.54733668]
[1659288781166,0.38899955,23729.0,23728.0,0.56046045]
[1659288781392,1.06258926,23730.0,23728.0,0.54781697]
[1659288781630,1.06258926,23730.0,23729.0,0.3]
[1659288782118,1.06258926,23730.0,23729.0,0.33308379]
[1659288782356,1.06258926,23730.0,23729.0,0.31264348]
[1659288782569,1.36652426,23730.0,23729.0,0.31264348]
[1659288782798,0.65533193,23730.0,23729.0,0.44140348]
[1659288783025,0.65533193,23730.0,23729.0,0.44640348]
[1659288783279,0.65533193,23730.0,23729.0,0.47435644]
[1659288783507,0.65533193,23730.0,23729.0,0.31764348]
[1659288784192,0.65533193,23730.0,23729.0,0.03808379]
[1659288784425,0.65533193,23730.0,23729.0,0.33808379]
[1659288784703,0.65533193,23730.0,23729.0,0.33308379]
[1659288784938,0.65533193,23730.0,23729.0,0.34208379]
[1659288785154,0.65533193,23730.0,23729.0,0.34255296]
[1659288786266,0.65526533,23730.0,23729.0,0.33355296]
[1659288786986,0.65526533,23730.0,23729.0,0.02211265]
[1659288786987,1.06252266,23730.0,23729.0,0.02211265]
[1659288787215,1.06252266,23730.0,23729.0,0.00946917]
[1659288787426,1.36645766,23730.0,23729.0,0.00946917]
[1659288787653,0.95,23729.0,23728.0,8.041e-05]
[1659288787871,0.95,23729.0,23727.0,0.1]
[1659288788093,0.603935,23728.0,23727.0,0.1]
[1659288788366,0.31423285,23728.0,23727.0,0.1]
[1659288788996,0.31423285,23728.0,23727.0,0.102]
[1659288789269,0.72149018,23728.0,23727.0,0.102]
[1659288789490,1.02542518,23728.0,23727.0,0.002]
[1659288790169,1.02542518,23728.0,23722.0,0.0449473]
[1659288790390,0.40725733,23727.0,23723.0,0.1294]
[1659288791951,0.303935,23726.0,23723.0,0.1294]
[1659288792207,0.40725733,23726.0,23723.0,0.14984031]
[1659288792873,0.40725733,23726.0,23723.0,0.1294]
[1659288793978,0.40725733,23726.0,23724.0,0.00046466]
[1659288794202,0.40725733,23726.0,23724.0,0.02090497]
[1659288794629,0.40725733,23726.0,23724.0,0.00046466]
[1659288795520,0.40732575,23726.0,23724.0,0.02090497]
[1659288795768,0.40725733,23725.0,23724.0,0.00046466]
[1659288796030,0.71119233,23725.0,23724.0,0.00046466]
[1659288796949,0.71119233,23725.0,23724.0,0.00746466]
[1659288797177,0.71119233,23725.0,23724.0,0.00735533]
[1659288797393,0.72542518,23725.0,23724.0,0.00735533]
[1659288798064,0.42149018,23725.0,23724.0,0.00735533]
[1659288798291,0.72542518,23725.0,23724.0,0.00046573]
[1659288798770,0.42149018,23725.0,23724.0,0.00046573]
[1659288798992,0.42149018,23725.0,23724.0,0.00546573]
[1659288798993,0.40725733,23725.0,23724.0,0.00546573]
[1659288799660,0.71119233,23725.0,23724.0,0.00546573]
[1659288799942,0.40725733,23725.0,23724.0,0.00546573]
[1659288800160,0.40725733,23725.0,23724.0,0.00139513]
[1659288800590,0.71119233,23725.0,23724.0,0.00139513]
[1659288800831,0.40725733,23725.0,23724.0,0.00139513]
[1659288800997,0.40725733,23725.0,23724.0,0.00639513]
[1659288802131,0.40725733,23725.0,23724.0,0.00139513]
[1659288802833,0.71119233,23725.0,23724.0,0.00639513]
[1659288803052,0.40725733,23725.0,23724.0,0.00639513]
[1659288804012,0.71119233,23725.0,23724.0,0.00639513]
[1659288804245,0.40725733,23725.0,23724.0,0.00139513]
[1659288804957,0.40725733,23725.0,23724.0,0.00539513]
[1659288805439,0.71119233,23725.0,23724.0,0.02583544]
[1659288805659,0.40725733,23725.0,23724.0,0.00539513]
[1659288805866,0.42149018,23725.0,23724.0,0.00539513]
[1659288806341,0.72542518,23725.0,23724.0,0.00539513]
[1659288806572,0.71119233,23725.0,23724.0,0.00539513]
[1659288806792,0.40725733,23725.0,23724.0,0.00139513]
[1659288807021,0.42149018,23725.0,23724.0,0.00539513]
[1659288807916,0.72542518,23725.0,23724.0,0.00539513]
[1659288808144,0.40725733,23725.0,23724.0,0.02583544]
[1659288808369,0.40725733,23725.0,23724.0,0.02183544]
[1659288808892,0.40725733,23725.0,23724.0,0.00839513]
[1659288810422,0.40725733,23725.0,23724.0,0.00139513]
[1659288810871,0.40725733,23725.0,23724.0,0.00839513]
[1659288812284,0.40725733,23725.0,23724.0,0.00139513]
[1659288812925,0.40725733,23725.0,23724.0,0.02920461]
[1659288813144,0.40725733,23725.0,23724.0,0.00839513]
[1659288813614,0.3467293,23725.0,23724.0,0.00839513]
[1659288814094,0.3467293,23725.0,23724.0,0.02920461]
[1659288814333,0.3467293,23725.0,23724.0,0.00139513]
[1659288814975,0.3467293,23725.0,23724.0,0.00839513]
[1659288815218,0.3467293,23725.0,23724.0,0.02920461]
[1659288815404,0.3467293,23725.0,23724.0,0.00839513]
[1659288816182,0.3467293,23725.0,23724.0,0.00139513]
[1659288816897,0.65526533,23730.0,23727.0,0.05493668]
[1659288817128,1.06252266,23730.0,23729.0,0.1293]
[1659288817363,1.06252266,23730.0,23729.0,0.1793]
[1659288818987,1.06252266,23730.0,23729.0,0.20069359]
[1659288819222,1.07675551,23730.0,23729.0,0.20069359]
[1659288819454,1.07675551,23730.0,23729.0,0.15069359]
[1659288819685,0.65526533,23730.0,23729.0,0.20069359]
[1659288820376,0.65526533,23730.0,23729.0,0.18936186]
[1659288820644,0.65526533,23730.0,23729.0,0.18069359]
[1659288820888,0.65026533,23730.0,23729.0,0.15069359]
[1659288821121,0.95026533,23730.0,23729.0,0.02139359]
[1659288821597,1.26843318,23730.0,23729.0,0.02139359]
[1659288821856,0.96449818,23730.0,23729.0,0.02139359]
[1659288822097,0.96449818,23730.0,23729.0,0.03375701]
[1659288822565,0.66449818,23730.0,23729.0,0.01375701]
[1659288822782,0.66449818,23730.0,23729.0,0.00139359]
[1659288823060,0.96843318,23730.0,23729.0,0.02109559]
[1659288823294,1.26843318,23730.0,23729.0,0.02109559]
[1659288823529,0.66449818,23730.0,23729.0,0.02139333]